Cogmind - Beta 15 @@@ ROGUE MODE // 2025.09.30 @ 03:32:27 Player: Runagate Result: Destroyed by G-67 Veteran with Field Laser Performance ------------- Evolutions (5) 2500 Regions Visited (12) 2400 Robots Destroyed (117) 585 Value Destroyed (4792) 4792 Prototype IDs (24) 480 Alien Tech Used (0) 0 Bonus (422) 422 TOTAL SCORE: 11179 Bonus ------- Follower Combat Kills 142 Aligned with FarCom 300 Friendly Fire -20 Cogmind --------- Core Integrity 0/1000 Matter 300/300 Energy 100/100 System Corruption 1% Temperature Cool (12) Movement Core (350) Ox6 Location -4/Proximity Caves Parts ------- > --- POWER (1) -------- (None) > --- PROPULSION (4) --- (None) > --- UTILITY (8) ------ Large Storage Unit > --- WEAPON (4) ------- (None) > --- INVENTORY (15) --- Improved Deuterium Engine Reinforced Deuterium Engine Reinforced Deuterium Engine Micro Fission Core High-capacity Storage Unit Matter Compressor (250) Advanced Terrain Scanner Weapon Cycler Improved Weapon Cycler Layered Medium Armor Plating Advanced Shield Generator Advanced Shield Generator Peak State ------------ > --- POWER ------------ Reinforced Deuterium Engine > --- PROPULSION ------- Armored Huge Wheel Armored Huge Wheel > --- UTILITY ---------- Improved Heat Sink Advanced Heat Sink High-capacity Storage Unit Core Analyzer Improved Weapon Cycler Improved Heavy Armor Plating Improved Hacking Suite > --- WEAPON ----------- Heavy Plasma Cannon Hypervelocity Gauss Rifle Magnetic Acceleration Cannon Magnetic Acceleration Cannon > --- INVENTORY -------- Ion Engine Light Deuterium Engine Improved Deuterium Engine Reinforced Deuterium Engine Reinforced Deuterium Engine Light Treads Carbon-fiber Leg Carbon-fiber Leg Improved Heat Sink Matter Compressor Advanced Terrain Scanner Weapon Cycler Layered Light Armor Plating Layered Medium Armor Plating Minigun Gauss Rifle Advanced Assault Cannon Magnetic Acceleration Cannon Magnetic Acceleration Cannon Grenade Launcher [Rating: 81] Favorites ----------- Power Ion Engine Engine Ion Engine Power Core Light Fission Core Propulsion Light Treads Treads Light Treads Leg Aluminum Leg Wheel Armored Huge Wheel Utility Core Analyzer Device Improved Heat Sink Storage High-capacity Storage Unit Processor Core Analyzer Hackware Improved Hacking Suite Protection Improved Heavy Armor Plating Weapon Magnetic Acceleration Cannon Energy Gun Medium Laser Energy Cannon Heavy Plasma Cannon Ballistic Gun KE Penetrator Ballistic Cannon Magnetic Acceleration Cannon Launcher Grenade Launcher Build | -11 -10 -10 -10 -9 -8 -7 -6 -5 -5 -5 -5 -4 ------- Run | Yrd Mat Min Exi Min Mat Fac Fac Fac Upp Upp War Pro Slots Evolved 10 | . . . . . 4 2 2 2 . . . . Power . | . . . . . . . . . . . . . Propulsion 2 | . . . . . 1 1 . . . . . . Utility 6 | . . . . . 2 1 2 1 . . . . Weapon 2 | . . . . . 1 . . 1 . . . . Parts Attached 86 | 8 13 3 1 1 7 4 28 3 1 4 . 13 Power 9 | 1 3 . . . . . 5 . . . . . Engine 7 | 1 3 . . . . . 3 . . . . . Core 2 | . . . . . . . 2 . . . . . Reactor . | . . . . . . . . . . . . . Propulsion 18 | 2 4 2 . . . 2 4 . . 3 . 1 Treads 12 | 2 1 2 . . . 2 2 . . 3 . . Leg 4 | . 3 . . . . . . . . . . 1 Wheel 2 | . . . . . . . 2 . . . . . Hover . | . . . . . . . . . . . . . Flight . | . . . . . . . . . . . . . Utility 33 | 2 3 . 1 1 6 2 10 1 1 1 . 5 Device 16 | 1 2 . 1 1 3 . 5 1 1 1 . . Storage 5 | 1 1 . . . . 1 . . . . . 2 Processor 4 | . . . . . . 1 2 . . . . 1 Hackware 1 | . . . . . . . 1 . . . . . Protection 7 | . . . . . 3 . 2 . . . . 2 Artifact . | . . . . . . . . . . . . . Weapon 26 | 3 3 1 . . 1 . 9 2 . . . 7 Energy Gun 4 | 2 2 . . . . . . . . . . . Energy Cannon 1 | . . . . . . . . 1 . . . . Ballistic Gun 10 | 1 . 1 . . . . 1 1 . . . 6 Ballistic Cannon 9 | . 1 . . . 1 . 7 . . . . . Launcher 2 | . . . . . . . 1 . . . . 1 Special Weapon . | . . . . . . . . . . . . . Impact Weapon . | . . . . . . . . . . . . . Slashing Weapon . | . . . . . . . . . . . . . Piercing Weapon . | . . . . . . . . . . . . . Special Melee Weapon . | . . . . . . . . . . . . . Unidentified Prototypes 1 | . . . . 1 . . . . . . . . Parts Lost 49 | . 4 . . . . 1 12 1 . . . 31 Power 3 | . 1 . . . . . 1 . . . . 1 Propulsion 13 | . 2 . . . . . 5 . . . . 6 Utility 16 | . . . . . . 1 4 1 . . . 10 Weapon 17 | . 1 . . . . . 2 . . . . 14 Highest Loss Streak 17 | . 3 . . . . 1 7 1 . . . 17 To Critical Strikes . | . . . . . . . . . . . . . Average Backups 14 | 1 8 10 10 10 7 10 17 19 19 18 19 15 Power 2 | . 1 1 1 1 1 2 2 5 5 3 3 3 Propulsion 1 | . . 1 2 1 . 1 4 1 1 1 1 . Utility 5 | . 4 5 5 5 3 2 2 6 7 8 10 8 Weapon 4 | . 1 2 2 2 2 5 7 5 6 5 5 3 Tool/Special . | . . . . . . . . . . . . . Unused Backups 21 | . 2 . . 1 1 . 3 2 . 3 . 9 Power 6 | . 1 . . . . . . . . 2 . 3 Propulsion 4 | . 1 . . 1 . . . 2 . . . . Utility 6 | . . . . . . . . . . . . 6 Weapon 5 | . . . . . 1 . 3 . . 1 . . Tool/Special . | . . . . . . . . . . . . . Average Slot Usage (%) 85 | . 98 100 100 100 95 87 85 80 81 91 94 68 Engine 6 | . 13 14 14 14 9 7 4 5 5 5 5 2 Treads 15 | . 22 5 28 28 27 27 16 . . 18 23 5 Leg 1 | . 4 22 . . . . . . . . . . Wheel 2 | . . . . . . . 4 11 11 2 . 2 Device 14 | . 14 14 14 14 15 15 16 15 16 17 17 10 Storage 7 | . 14 14 14 14 9 7 6 5 5 5 5 5 Processor 4 | . . . . . . 3 8 5 5 5 5 6 Hackware 3 | . . . . . . . 5 5 5 5 5 4 Protection 4 | . . . . . 11 9 4 5 5 5 5 3 Energy Gun 3 | . 14 11 . . 8 7 3 . . . . . Energy Cannon 2 | . . . . . . . . 5 5 5 5 4 Ballistic Gun 6 | . 11 2 14 14 5 . . 5 5 5 5 9 Ballistic Cannon 8 | . 2 14 14 14 9 7 9 11 11 11 11 5 Peak Build Rating 81 | 7 8 9 16 16 27 35 70 81 81 81 77 81 Average Rating 46 | 5 7 8 12 15 20 31 50 79 80 77 77 60 On Entrance 38 | . 7 8 9 16 15 27 35 70 78 81 77 77 Naked Turns . | . . . . . . . . . . . . . Heaviest Build 105 | 14 20 22 22 25 40 71 94 105 105 105 105 105 Greatest Support 99 | 40 40 40 40 40 60 80 80 56 56 99 99 99 Greatest Overweight (x) 28 | . 1 . . . . . 1 1 1 1 1 28 Average Overweight (x) 1 | . . . . . . . . 1 1 1 1 4 Largest Inventory Capacity 20 | 8 10 10 10 10 10 20 20 20 20 20 20 20 Average Capacity 16 | 6 9 10 10 10 10 16 20 20 20 20 20 18 Most Carried 20 | 3 10 10 10 10 10 16 20 20 20 20 20 20 Average Carried 14 | 1 8 10 10 9 7 11 18 19 19 19 20 15 Final Capacity 20 | 8 10 10 10 10 10 20 20 20 20 20 20 15 Final Carried 20 | 3 10 10 10 10 10 16 20 20 20 20 20 12 Class Distribution -------------------- 32% | Gunner 17% | Mutant 14% | Skirmisher 9% | Scavenger-Gunner 9% | Tank 9% | Scavenger-Skirmisher 6% | Scavenger-Mutant Dominant Class ---------------- Mutant | -10/Materials Mutant | -10/Mines Scavenger-Mutant | -10/Exiles Mutant | -9/Mines Scavenger-Skirmisher | -8/Materials Skirmisher | -7/Factory Skirmisher | -6/Factory Gunner | -5/Factory Gunner | -5/Upper Caves Scavenger-Gunner | -5/Upper Caves Scavenger-Gunner | -5/Warlord Gunner | -4/Proximity Caves Resources | -11 -10 -10 -10 -9 -8 -7 -6 -5 -5 -5 -5 -4 ----------- Run | Yrd Mat Min Exi Min Mat Fac Fac Fac Upp Upp War Pro Matter Collected 4298 | 287 172 54 . 44 182 373 987 74 616 322 . 1187 Remotely . | . . . . . . . . . . . . . Salvage Created 5302 | 133 466 . . 43 261 527 1159 85 531 519 . 1578 Parts 236 | 9 27 . . . 12 23 60 3 21 19 . 62 Haulers Intercepted 1 | . 1 . . . . . . . . . . . Recyclers Shooed 3 | . 1 . . . . . 2 . . . . . Parts Field Recycled . | . . . . . . . . . . . . . Retrieved Matter . | . . . . . . . . . . . . . Parts Self-Destructed 114 | . . . . . . . . . 34 11 . 69 Prevented . | . . . . . . . . . . . . . Kills | -11 -10 -10 -10 -9 -8 -7 -6 -5 -5 -5 -5 -4 ------- Run | Yrd Mat Min Exi Min Mat Fac Fac Fac Upp Upp War Pro Combat Hostiles Destroyed 88 | . 6 . . 1 4 11 22 1 9 6 . 28 Guns 25 | . 6 . . . 3 . 2 . 2 3 . 9 Cannons 60 | . . . . 1 1 10 20 1 6 2 . 19 AOE 1 | . . . . . . 1 . . . . . . Classes Destroyed 18 | 2 4 . . 1 1 2 4 . 3 . . 1 Worker 5 | . 1 . . . . 1 3 . . . . . Builder 5 | . . . . . . 1 4 . . . . . Tunneler 3 | 2 . . . . . . 1 . . . . . Hauler 1 | . 1 . . . . . . . . . . . Recycler 6 | 1 2 . . . 1 1 1 . . . . . Carrier 1 | . . . . . . . . . . . . 1 Operator 2 | . . . . . . . 2 . . . . . Drone 3 | . . . . . . . 1 . . . . 2 Watcher 6 | . 1 . . . 1 1 2 1 . . . . Swarmer 14 | . . . . . . . . . 1 . . 13 Grunt 42 | . 6 . . . 3 7 12 . 2 4 . 8 Brawler 1 | . . . . 1 . . . . . . . . Duelist 3 | . . . . . . . . . 3 . . . Sentry 11 | . . . . . 1 3 3 1 1 1 . 1 Hunter 4 | . . . . . . . 2 . . . . 2 Programmer 9 | . . . . . . 1 4 . 2 . . 2 Behemoth 2 | . . . . . . . 1 . . 1 . . Decomposer 1 | . . . . . . . . . . 1 . . Samaritan 4 | . . . . . . . . . 1 3 . . Best Kill Streak 14 | 3 5 . . 1 5 4 14 1 7 3 . 7 Combat Bots Only 7 | . 4 . . 1 4 3 7 1 7 3 . 7 Max Kills in Single Turn 3 | 1 1 . . 1 2 2 2 1 3 1 . 2 Gunslinging 1 | . . . . . . . . . . . . 1 Exploded 1 | . . . . . . 1 . . . . . . Melee . | . . . . . . . . . . . . . Uniques/NPCs Destroyed . | . . . . . . . . . . . . . Combat | -11 -10 -10 -10 -9 -8 -7 -6 -5 -5 -5 -5 -4 -------- Run | Yrd Mat Min Exi Min Mat Fac Fac Fac Upp Upp War Pro Hostile Shots Fired 772 | . 67 . . 5 26 77 196 3 34 9 . 355 Missed 206 | . 20 . . 2 7 26 55 . 11 4 . 81 Hits 566 | . 47 . . 3 19 51 141 3 23 5 . 274 Melee 2 | . . . . . . . . . 2 . . . Projectile 564 | . 47 . . 3 19 51 141 3 21 5 . 274 Critical Strikes 30 | . . . . . 1 1 7 . 1 . . 20 Damage Taken 9801 | . 605 . . 33 336 684 2443 61 448 80 . 5111 Core 1635 | . 119 . . 12 78 142 275 . 27 . . 982 Absorbed by Shields . | . . . . . . . . . . . . . Regen/Repaired (Parts) 480 | . . . . . . . 256 224 . . . . Core Remaining (%) 75 | 100 . . . 47 85 79 67 . . . . . Volleys Fired 287 | 7 39 1 . 2 16 33 72 9 15 16 . 77 Largest 4 | 2 2 2 . 2 3 2 3 4 4 4 . 4 Hottest 213 | 70 70 70 . 53 103 100 128 211 211 211 . 213 Shots Fired 762 | 14 75 2 . 4 47 66 168 36 48 64 . 238 Gun 323 | 14 66 1 . 2 31 33 49 9 11 16 . 91 Cannon 434 | . 9 1 . 2 16 33 115 27 37 48 . 146 Launcher 5 | . . . . . . . 4 . . . . 1 Special . | . . . . . . . . . . . . . Kinetic 548 | 7 39 1 . 4 32 33 123 27 37 48 . 197 Thermal 202 | 7 29 1 . . 15 33 41 9 11 16 . 40 Explosive 5 | . . . . . . . 4 . . . . 1 Electromagnetic 7 | . 7 . . . . . . . . . . . Robot Hit Streak 15 | 7 13 . . 1 15 8 12 5 7 9 . 11 Robot Miss Streak 13 | 2 5 . . 1 2 6 10 2 5 3 . 13 Penetration Max 1 | . . . . . . . 1 . 1 . . 1 Secondary Targets 6 | . 2 . . . . . . . . . . 4 Max Gunslinging Chain 2 | . 1 . . . . . . . . . . 2 Shots Hit Robots 419 | 10 52 . . 2 34 38 98 9 23 36 . 117 Core Hits 243 | 5 27 . . 2 14 21 79 4 18 12 . 61 Critical Kills 11 | . . . . . . . 1 . 2 4 . 4 Critical Parts Destroyed 13 | . . . . . . . . 1 4 2 . 6 Critical Strikes 49 | 1 1 . . 1 2 7 9 2 8 6 . 12 Burn 10 | 1 1 . . . 2 3 3 . . . . . Meltdown 2 | . . . . . . . . . 1 1 . . Destroy 23 | . . . . . . . 1 1 6 5 . 10 Blast 14 | . . . . 1 . 4 5 1 1 . . 2 Melee Attacks . | . . . . . . . . . . . . . Impact . | . . . . . . . . . . . . . Slashing . | . . . . . . . . . . . . . Piercing . | . . . . . . . . . . . . . Sneak Attacks . | . . . . . . . . . . . . . Combat Hostiles . | . . . . . . . . . . . . . Follow-up Attacks . | . . . . . . . . . . . . . Damage Inflicted 11785 | 118 699 . . 55 564 1544 3609 203 778 939 . 3276 Guns 2895 | 115 535 . . 20 339 233 338 19 78 46 . 1172 Cannons 7988 | . 88 . . 35 214 1104 2703 184 700 859 . 2101 Explosions 828 | . 72 . . . . 203 553 . . . . . Melee . | . . . . . . . . . . . . . Ramming 74 | 3 4 . . . 11 4 15 . . 34 . 3 Kinetic 8397 | 28 260 . . 55 402 1104 2731 138 536 451 . 2692 Thermal 2494 | 87 371 . . . 151 233 310 65 242 454 . 581 Explosive 756 | . . . . . . 203 553 . . . . . Electromagnetic 64 | . 64 . . . . . . . . . . . Impact . | . . . . . . . . . . . . . Slashing . | . . . . . . . . . . . . . Piercing . | . . . . . . . . . . . . . Highest Corruption 6 | . . . . . . . 6 . . . . 1 Average Corruption 2 | . . . . . . . 3 . . . . 1 Corruption Purged . | . . . . . . . . . . . . . Corruption Blocked . | . . . . . . . . . . . . . Effects 56 | . . . . . . . 41 . . . . 15 Message Errors 12 | . . . . . . . 8 . . . . 4 Matter Fused 13 | . . . . . . . 10 . . . . 3 Heat Flow Errors 6 | . . . . . . . 4 . . . . 2 Energy Discharges 10 | . . . . . . . 8 . . . . 2 Data Loss (minor) 7 | . . . . . . . 5 . . . . 2 Data Loss (major) 2 | . . . . . . . 1 . . . . 1 Misfires 2 | . . . . . . . 2 . . . . . Alerts 1 | . . . . . . . . . . . . 1 Weapon Failures 3 | . . . . . . . 3 . . . . . Overload Shots . | . . . . . . . . . . . . . Overflow Damage 435 | . 14 . . . . 111 119 . . 113 . 78 Projectiles 361 | . 8 . . . . 70 118 . . 87 . 78 Explosions 48 | . 6 . . . . 41 1 . . . . . Melee 26 | . . . . . . . . . . 26 . . Knockbacks 48 | . 1 . . . 6 6 20 . 5 . . 10 Impact . | . . . . . . . . . . . . . Kinetic 45 | . 1 . . . 6 5 19 . 4 . . 10 Secondary 3 | . . . . . . 1 1 . 1 . . . Self-Inflicted Damage 173 | . . . . . . 84 72 . . 17 . . Shots 3 | . . . . . . 1 2 . . . . . Rammed 12 | 1 . . . . 1 2 2 . . 1 . 5 Targets Rammed 14 | 1 2 . . . 1 2 2 . . 1 . 5 Kicked 2 | . 2 . . . . . . . . . . . Crushed . | . . . . . . . . . . . . . Highest Temperature 574 | 100 166 9 . 6 93 24 264 166 452 305 . 574 Average Temperature 93 | 49 42 6 . 4 38 9 83 75 155 80 . 136 Received Heat Transfer 2747 | . 333 . . 18 171 222 651 9 54 18 . 1271 Effects 18 | . . . . . . . 3 . 4 . . 11 Shutdowns 3 | . . . . . . . . . 1 . . 2 Energy Bleed 3 | . . . . . . . 1 . . . . 2 Interference 5 | . . . . . . . 2 . 3 . . . Matter Decay 1 | . . . . . . . . . . . . 1 Short Circuit 1 | . . . . . . . . . . . . 1 Damage (minor) 2 | . . . . . . . . . . . . 2 Damage (major) 3 | . . . . . . . . . . . . 3 Siege Activations . | . . . . . . . . . . . . . Martial Activations . | . . . . . . . . . . . . . Shielding Activations . | . . . . . . . . . . . . . Robots Disrupted . | . . . . . . . . . . . . . Combat Hostiles . | . . . . . . . . . . . . . Robots Corrupted 1 | . . . . . . . . . . 1 . . Combat Hostiles . | . . . . . . . . . . . . . Parts Fried 1 | . . . . . . . . . . 1 . . Impact Corruptions 4 | . . . . . . . . . . 4 . . Robots Melted 2 | . . . . . . . . . 1 1 . . Combat Hostiles 2 | . . . . . . . . . 1 1 . . Parts Melted 13 | 3 . . . . 3 1 . . 3 2 . 1 Heat Transferred 5915 | 333 979 . . . 592 888 1073 100 350 700 . 900 Parts Sabotaged . | . . . . . . . . . . . . . Parts Stolen . | . . . . . . . . . . . . . Parts Stripped . | . . . . . . . . . . . . . Power Chain Reactions 1 | . 1 . . . . . . . . . . . Alert | -11 -10 -10 -10 -9 -8 -7 -6 -5 -5 -5 -5 -4 ------- Run | Yrd Mat Min Exi Min Mat Fac Fac Fac Upp Upp War Pro Maximum Alert Level 1 | . . . . . . . 1 . . . . . Low Security (%) 87 | 100 100 100 . 100 100 100 65 100 . . . . Level 1 12 | . . . . . . . 34 . . . . . Level 2 . | . . . . . . . . . . . . . Level 3 . | . . . . . . . . . . . . . Level 4 . | . . . . . . . . . . . . . Level 5 . | . . . . . . . . . . . . . High Security . | . . . . . . . . . . . . . Max Security . | . . . . . . . . . . . . . Peak Influence 353 | 5 74 15 . 30 150 152 353 168 . . . . Initial 168 | . . 9 . . . . 71 168 . . . . Average 67 | . 15 1 . 3 53 45 123 68 . . . . Influence Increases 3022 | 15 214 15 . 30 237 391 856 101 356 187 . 620 Destroy 0b10 Robot/C 1900 | . 120 . . 20 80 220 440 20 320 140 . 540 Destroy 0b10 Robot/NC 150 | 15 25 . . . 10 20 65 5 . . . 10 Destroy Leader 364 | . 44 . . 10 12 52 124 12 20 20 . 70 Allied During Kill 28 | . . . . . . . . . 16 12 . . Successful Hack 75 | . 5 . . . . 14 33 23 . . . . Disable Machine 165 | . 15 15 . . 15 45 75 . . . . . Destroy Structure 145 | . 5 . . . . 40 74 26 . . . . Lose Combat Pursuer 195 | . . . . . 120 . 45 15 . 15 . . Influence Decreases 3022 | 15 189 40 . 30 237 245 659 433 205 349 . 620 Entered New Map 303 | . . 16 . . . . 75 175 5 32 . . Time Decay 2289 | 15 149 24 . 30 237 235 452 248 180 297 . 422 Lost Part 378 | . 40 . . . . 10 120 10 . . . 198 Lost Ally 52 | . . . . . . . 12 . 20 20 . . Squads Dispatched 20 | . 3 . . . 1 4 11 1 . . . . Investigation 3 | . . . . . . 1 1 1 . . . . Extermination 6 | . . . . . . 1 5 . . . . . Reinforcement 11 | . 3 . . . 1 2 5 . . . . . Assault . | . . . . . . . . . . . . . Garrison . | . . . . . . . . . . . . . Intercept . | . . . . . . . . . . . . . Searches Triggered . | . . . . . . . . . . . . . Construction Impeded 3 | . . . . . . 2 1 . . . . . Haulers Reinforced 1 | . . . . . . . 1 . . . . . Active Scanning Responses . | . . . . . . . . . . . . . Cargo Convoy Interrupts 1 | . . . . . . 1 . . . . . . Stealth | -11 -10 -10 -10 -9 -8 -7 -6 -5 -5 -5 -5 -4 --------- Run | Yrd Mat Min Exi Min Mat Fac Fac Fac Upp Upp War Pro Distress Signals 7 | . 1 . . . 2 2 2 . . . . . Communications Jammed . | . . . . . . . . . . . . . Distress Signals . | . . . . . . . . . . . . . Times Spotted 141 | . 17 . . 3 13 13 35 9 12 6 . 33 Peak Tracking Total 9 | . 4 . . 3 9 3 7 4 7 3 . 7 Tactical Retreats 11 | . . . . . 6 . 3 1 . 1 . . Traps | -11 -10 -10 -10 -9 -8 -7 -6 -5 -5 -5 -5 -4 ------- Run | Yrd Mat Min Exi Min Mat Fac Fac Fac Upp Upp War Pro Traps Triggered 8 | . . . . . . 2 6 . . . . . Indirectly . | . . . . . . . . . . . . . Trap Hack Attempts . | . . . . . . . . . . . . . Triggered . | . . . . . . . . . . . . . Disarmed . | . . . . . . . . . . . . . Reprogrammed . | . . . . . . . . . . . . . Reused . | . . . . . . . . . . . . . Traps Extracted . | . . . . . . . . . . . . . Installed . | . . . . . . . . . . . . . Triggered . | . . . . . . . . . . . . . Machines | -11 -10 -10 -10 -9 -8 -7 -6 -5 -5 -5 -5 -4 ---------- Run | Yrd Mat Min Exi Min Mat Fac Fac Fac Upp Upp War Pro Machines Disabled 16 | . 1 1 . . 1 3 5 . 1 . . 4 Max in Single Turn 1 | . 1 1 . . 1 1 1 . 1 . . 1 Machines Repaired . | . . . . . . . . . . . . . Machines Dismantled . | . . . . . . . . . . . . . Machines Sabotaged . | . . . . . . . . . . . . . Overloaded Fab Kills . | . . . . . . . . . . . . . Hacking | -11 -10 -10 -10 -9 -8 -7 -6 -5 -5 -5 -5 -4 --------- Run | Yrd Mat Min Exi Min Mat Fac Fac Fac Upp Upp War Pro Machines Accessed 19 | . 2 . 1 1 1 2 5 6 . 1 . . Terminals 8 | . 2 . . . 1 2 2 1 . . . . Fabricators 1 | . . . . . . . 1 . . . . . Repair Stations 3 | . . . . . . . 1 2 . . . . Recycling Units 4 | . . . . . . . 1 3 . . . . Scanalyzers . | . . . . . . . . . . . . . Garrison Access . | . . . . . . . . . . . . . Total Hacks 45 | . 6 . 1 1 5 2 12 17 . 1 . . Successful 27 | . 1 . 1 1 2 1 8 12 . 1 . . Failed 18 | . 5 . . . 3 1 4 5 . . . . Catastrophic 4 | . 1 . . . 1 . 2 . . . . . Database Lockouts . | . . . . . . . . . . . . . Manual 14 | . 6 . 1 . 3 2 1 1 . . . . Terminals 19 | . 6 . . . 5 2 3 3 . . . . Fabricators 1 | . . . . . . . 1 . . . . . Repair Stations 12 | . . . . . . . 6 6 . . . . Recycling Units 10 | . . . . . . . 2 8 . . . . Scanalyzers . | . . . . . . . . . . . . . Garrison Access . | . . . . . . . . . . . . . Terminal Hacks 9 | . . . 1 1 2 . 1 3 . 1 . . Part Schematic 1 | . . . . . . . . 1 . . . . Robot Analysis 1 | . . . . . . . . 1 . . . . Open Door 2 | . . . . 1 . . . . . 1 . . Emergency Access Points 1 | . . . . . 1 . . . . . . . Locate Traps 1 | . . . . . 1 . . . . . . . Registered Components 1 | . . . . . . . . 1 . . . . Zone Layout 1 | . . . . . . . 1 . . . . . Proto ID Catalog 1 | . . . 1 . . . . . . . . . Fabricator Hacks . | . . . . . . . . . . . . . Repair Station Hacks 9 | . . . . . . . 4 5 . . . . Scan Component 5 | . . . . . . . 2 3 . . . . Repair 4 | . . . . . . . 2 2 . . . . Recycling Unit Hacks 6 | . . . . . . . 2 4 . . . . Process 3 | . . . . . . . 1 2 . . . . Retrieve Matter 3 | . . . . . . . 1 2 . . . . Scanalyzer . | . . . . . . . . . . . . . Garrison Access Hacks . | . . . . . . . . . . . . . Unauthorized Hacks 3 | . 1 . . . . 1 1 . . . . . Terminals 3 | . 1 . . . . 1 1 . . . . . Botnet 3 | . 1 . . . . 1 1 . . . . . Fabricators . | . . . . . . . . . . . . . Repair Stations . | . . . . . . . . . . . . . Recycling Units . | . . . . . . . . . . . . . Scanalyzers . | . . . . . . . . . . . . . Garrison Access . | . . . . . . . . . . . . . Data Cores Recovered . | . . . . . . . . . . . . . Used . | . . . . . . . . . . . . . Hacking Detections 13 | . 2 . . . 1 2 5 3 . . . . Full Trace Events 2 | . . . . . . . 1 1 . . . . Feedback Events . | . . . . . . . . . . . . . Feedback Blocked . | . . . . . . . . . . . . . Robot Schematics Acquired . | . . . . . . . . . . . . . Robots Built . | . . . . . . . . . . . . . Authchips . | . . . . . . . . . . . . . Time . | . . . . . . . . . . . . . Total Robot Build Rating . | . . . . . . . . . . . . . Part Schematics Acquired 1 | . . . . . . . . 1 . . . . Parts Built . | . . . . . . . . . . . . . Authchips . | . . . . . . . . . . . . . Time . | . . . . . . . . . . . . . Total Part Build Rating . | . . . . . . . . . . . . . Parts Repaired 4 | . . . . . . . 2 2 . . . . Time 112 | . . . . . . . 64 48 . . . . Parts Recycled . | . . . . . . . . . . . . . Recycled Matter 112 | . . . . . . . 82 30 . . . . Retrieved Matter 257 | . . . . . . . 227 30 . . . . Retrieved Components . | . . . . . . . . . . . . . Parts Scanalyzed . | . . . . . . . . . . . . . Part Schematics Acquired . | . . . . . . . . . . . . . Parts Damaged . | . . . . . . . . . . . . . Bothacking | -11 -10 -10 -10 -9 -8 -7 -6 -5 -5 -5 -5 -4 ------------ Run | Yrd Mat Min Exi Min Mat Fac Fac Fac Upp Upp War Pro Used RIF Installer . | . . . . . . . . . . . . . Robots Hacked . | . . . . . . . . . . . . . Non-combat . | . . . . . . . . . . . . . Combat . | . . . . . . . . . . . . . Robot Hacks Applied . | . . . . . . . . . . . . . Relay Couplers Released . | . . . . . . . . . . . . . Fabnet Peak Effective % . | . . . . . . . . . . . . . Robots Rewired 2 | . . . . . . . . . 2 . . . Allies Hacked . | . . . . . . . . . . . . . Hacks Repelled . | . . . . . . . . . . . . . Allies | -11 -10 -10 -10 -9 -8 -7 -6 -5 -5 -5 -5 -4 -------- Run | Yrd Mat Min Exi Min Mat Fac Fac Fac Upp Upp War Pro Total Allies 2 | . . . . . . . . . 2 . . . Largest Group 2 | . . . . . . . . . 2 1 . . Highest-Rated Group 78 | . . . . . . . . . 78 49 . . Highest-Rated Ally 49 | . . . . . . . . . 49 49 . . Total Orders 20 | . . . 2 3 4 3 8 . . . . . ROAM 1 | . . . . . 1 . . . . . . . EXPLORE 13 | . . . 1 2 3 2 5 . . . . . RETURN 6 | . . . 1 1 . 1 3 . . . . . Ally Attacks 47 | . . . . . 1 . 18 . 22 6 . . Total Damage 844 | . . . . . . . 93 . 568 183 . . Kills 8 | . . . . . . . . . 7 1 . . Allies Corrupted . | . . . . . . . . . . . . . Allies Melted . | . . . . . . . . . . . . . Intel | -11 -10 -10 -10 -9 -8 -7 -6 -5 -5 -5 -5 -4 ------- Run | Yrd Mat Min Exi Min Mat Fac Fac Fac Upp Upp War Pro Active Infowar (turns) 1729 | 30 1186 265 247 . 1 . . . . . . . Seismic 1729 | 30 1186 265 247 . 1 . . . . . . . Robot Analysis Total 1 | . . . . . . . . 1 . . . . Derelict Logs Recovered 3 | . . . . 1 . . . . 1 . . 1 Drone Launches 22 | . . . 1 3 4 2 12 . . . . . Drone Recoveries 19 | . . . 1 3 4 2 9 . . . . . Exploration | -11 -10 -10 -10 -9 -8 -7 -6 -5 -5 -5 -5 -4 ------------- Run | Yrd Mat Min Exi Min Mat Fac Fac Fac Upp Upp War Pro Turns Passed 11067 | 108 1303 265 436 207 652 985 2428 550 360 1116 101 2556 Spaces Moved 4896 | 47 410 201 262 109 279 449 1124 354 195 512 43 911 Core 124 | 4 . . . . . . . . . . . 120 Treads 2525 | 43 259 34 262 109 279 449 667 . . 359 43 21 Legs 355 | . 151 167 . . . . . . . . . 37 Wheels 1892 | . . . . . . . 457 354 195 153 . 733 Hover . | . . . . . . . . . . . . . Flight . | . . . . . . . . . . . . . Fastest Speed 50 | 50 120 120 160 160 160 160 115 115 115 115 240 145 Average Speed 173 | 150 165 126 160 160 160 161 150 115 115 202 240 249 Slowest Speed 1450 | 160 190 160 160 160 160 162 243 115 115 240 240 1450 Overloaded Moves . | . . . . . . . . . . . . . Propulsion Burnouts . | . . . . . . . . . . . . . Robots Hopped . | . . . . . . . . . . . . . Potential Cave-ins 7 | . . . . . . . 7 . . . . . Cave-ins Triggered . | . . . . . . . . . . . . . Exploration Rate (%) 44 | 6 50 40 91 37 80 32 42 11 34 63 9 80 Regions Visited 12 Branch Regions 7 Pre-discovered Areas 1 | . . . . 1 . . . . . . . . Known Exits Taken . | . . . . . . . . . . . . . Unknown Exits Taken 12 | 1 1 1 1 1 1 1 1 1 1 1 1 . Scrap Searched 8 | . . 1 . 1 . . . . 1 1 . 4 Spaces Dug 30 | . . . . . . 6 11 12 . . . 1 Terrain Destroyed 231 | . 5 . . . . 40 76 19 9 17 . 65 Melee . | . . . . . . . . . . . . . Projectile 156 | . . . . . . 14 36 19 9 17 . 61 AOE 74 | . 5 . . . . 26 40 . . . . 3 Terrain Rammed . | . . . . . . . . . . . . . Walls Destroyed . | . . . . . . . . . . . . . Machines Disabled . | . . . . . . . . . . . . . Actions | -11 -10 -10 -10 -9 -8 -7 -6 -5 -5 -5 -5 -4 --------- Run | Yrd Mat Min Exi Min Mat Fac Fac Fac Upp Upp War Pro Total 6855 | 67 959 210 278 137 449 629 1684 481 302 561 42 1056 Wait 1427 | 2 480 2 16 23 129 128 413 108 82 11 . 33 Move 4885 | 47 409 200 261 108 278 448 1123 353 194 511 42 911 Hop . | . . . . . . . . . . . . . Pick Up 57 | 3 8 2 . 1 5 8 14 5 . 8 . 3 Fast Attach 27 | 7 3 . . . 1 1 6 1 . 1 . 7 Attach 36 | . 1 . . . 5 2 11 1 1 3 . 12 Detach 4 | . . . . . 1 . 2 . . . . 1 Swap 56 | 1 11 3 1 2 7 3 21 1 1 1 . 4 Drop 45 | . 6 2 . 1 6 4 12 3 . 9 . 2 Fire 287 | 7 39 1 . 2 16 33 72 9 15 16 . 77 Melee . | . . . . . . . . . . . . . Ram 7 | . . . . . . . 1 . . 1 . 5 Kick 2 | . 2 . . . . . . . . . . . Crush 4 | . . . . . 1 2 1 . . . . . Escape Stasis 8 | . . . . . . . 8 . . . . . Rewire 10 | . . . . . . . . . 9 . . 1 Trap . | . . . . . . . . . . . . . Miscellaneous . | . . . . . . . . . . . . . Route ------- -11/Scrapyard -10/Materials (discovered 3 exits: [*Mat] / [*Min] / [*Sub]) -10/Mines -10/Exiles (discovered 2 exits: *Min x2) -9/Mines -8/Materials (discovered 2 exits: *Fac x2) -7/Factory (discovered 3 exits: *Fac x2 / [*Sto]) -6/Factory -5/Factory -5/Upper Caves -5/Upper Caves -5/Warlord -4/Proximity Caves History --------- Turn | Location | Event 3 | -11/Scrapyard | Discovered new exit (range 15) 109 | -11/Scrapyard | Entered Materials 315 | -10/Materials | Build established: Mutant 562 | -10/Materials | Discovered new exit (range 16) 723 | -10/Materials | Discovered new exit (range 9) 1030 | -10/Materials | Lost 3 parts (1p1n1w) 1269 | -10/Materials | Discovered new exit (range 14) 1329 | -10/Materials | Build established: Scavenger-Mutant 1412 | -10/Materials | Entered Mines 1611 | -10/Mines | Joined a pair of Derelicts in attacking an 0b10 outpost 1669 | -10/Mines | Deemed a non-threat by the Exiles lab entrance 1671 | -10/Mines | Discovered new exit (range 5) 1677 | -10/Mines | Entered Exiles 1721 | -10/Exiles | Met 8R-AWN 1740 | -10/Exiles | Met EX-HEX 1786 | -10/Exiles | Met EX-BIN 1871 | -10/Exiles | Aligned with FarCom system 1873 | -10/Exiles | Given EX-Vault access code 1909 | -10/Exiles | Opened EX-Vault 1924 | -10/Exiles | Found Supersonic Drone Bay 1944 | -10/Exiles | Discovered new exit (range 56) 1950 | -10/Exiles | Discovered new exit (range 66) 1983 | -10/Exiles | Warned to stay clear of 0b10 Research branches 2113 | -10/Exiles | Left Exiles lab with Supersonic Drone Bay 2113 | -10/Exiles | Entered Mines 2132 | -9/Mines | Met a Derelict bent on vengeance 2165 | -9/Mines | Core integrity fell below 50% 2208 | -9/Mines | Discovered new exit (range 28) 2230 | -9/Mines | Build established: Mutant 2281 | -9/Mines | Found the Drone Emporium 2299 | -9/Mines | Found Prototype Device 2299 | -9/Mines | Identified Thief Drone Bay 2320 | -9/Mines | Entered Materials 2320 | -8/Materials | Evolved 4 slots: Propulsion x1, Utility x2, Weapon x1 2686 | -8/Materials | Discovered new exit (range 53) 2689 | -8/Materials | Discovered new exit (range 80) 2972 | -8/Materials | Entered Factory 2972 | -7/Factory | Evolved 2 slots: Propulsion x1, Utility x1 3007 | -7/Factory | Discovered new exit (range 135) 3305 | -7/Factory | Build established: Tank 3759 | -7/Factory | Build established: Skirmisher 3886 | -7/Factory | Discovered new exit (range 23) 3890 | -7/Factory | Discovered new exit (range 64) 3908 | -7/Factory | Cargo convoy interrupted 3957 | -7/Factory | Entered another Factory area 3957 | -6/Factory | Evolved 2 slots: Utility x2 4816 | -6/Factory | Repaired Lgt. Treads 4856 | -6/Factory | Repaired Hvy. Assault Cannon 5206 | -6/Factory | Build established: Scavenger-Skirmisher 5449 | -6/Factory | Spotted B-75 Beast 5475 | -6/Factory | Destroyed B-75 Beast 5571 | -6/Factory | Lost 7 parts (3n2u2w) 5572 | -6/Factory | Destroyed 7 combat bots 5918 | -6/Factory | Build established: Gunner 6366 | -6/Factory | Discovered new exit (range 15) 6385 | -6/Factory | Entered another Factory area 6385 | -5/Factory | Evolved 2 slots: Utility x1, Weapon x1 6694 | -5/Factory | Repaired Adv. Assault Cannon 6818 | -5/Factory | Discovered new exit (range 15) 6903 | -5/Factory | Repaired Lgt. Treads 6935 | -5/Factory | Entered Upper Caves 6937 | -5/Upper Caves | Attracted the attention of an 0b10 outpost 6984 | -5/Upper Caves | Destroyed 7 combat bots 7062 | -5/Upper Caves | Attracted the attention of an 0b10 checkpoint 7224 | -5/Upper Caves | Learned Factory trap positions 7229 | -5/Upper Caves | Discovered new exit (range 12) 7295 | -5/Upper Caves | Entered another Upper Caves area 7295 | -5/Upper Caves | Accompanied by 1 ally 7331 | -5/Upper Caves | Spotted B-75 Beast 7336 | -5/Upper Caves | Destroyed B-75 Beast 7380 | -5/Upper Caves | Attracted the attention of an 0b10 checkpoint 7833 | -5/Upper Caves | Build established: Scavenger-Gunner 8329 | -5/Upper Caves | Discovered new exit (range 11) 8411 | -5/Upper Caves | Entered Warlord 8493 | -5/Warlord | Discovered new exit (range 9) 8512 | -5/Warlord | Entered Proximity Caves 8515 | -4/Proximity Caves | Spotter reported a threat 8926 | -4/Proximity Caves | Build established: Gunner 9423 | -4/Proximity Caves | Learned location of 1 exit from Upper Caves 9663 | -4/Proximity Caves | Build established: Tank 9766 | -4/Proximity Caves | Attracted the attention of an 0b10 base 9857 | -4/Proximity Caves | Lost 17 parts (1p3n5u8w) 9859 | -4/Proximity Caves | Destroyed 7 combat bots 10249 | -4/Proximity Caves | Build established: Gunner 11013 | -4/Proximity Caves | Core integrity fell below 50% 11057 | -4/Proximity Caves | Core integrity fell below 20% 11068 | -4/Proximity Caves | Destroyed by G-67 Veteran with Field Laser Last Messages --------------- 11035_ Myomer Leg destroyed. 11037_ Adv. Heat Sink fries itself beyond repair. 11038_ Slug penetrates G-67 Veteran. 11041_ KE Penetrator destroyed. 11041_ Imp. Hacking Suite destroyed. 11041_ Slug penetrates G-67 Veteran. 11042_ Adv. Heat Sink fries itself beyond repair. 11043_ Slug penetrates Wall. 11045_ Adv. Heat Sink fries itself beyond repair. 11045_ Hvy. Laser fries itself beyond repair. 11045_ Slug penetrates Wall. 11047_ Myomer Leg fries itself beyond repair. 11047_ KE Penetrator destroyed. 11047_ Acquired 17 matter. 11051_ Slammed into G-67 Veteran. 11056_ Critical hit (Burn: +50). 11058_ Slammed into G-67 Veteran. Map ----- +----------------------------------------------------+ | #""" # #??????????????????????????????????? | | # " % "# #??????????????????????????????????? | | # % "# #??????????????????????????????????? | | ####""+""## #??????????????????????????????????? | | ! % #??????????????????????????????????? | | % #??????????????????????????????????? | | ### "%########??????????????????????????????????? | | ### ###?????????????????????????????????????????? | | ##" #???????????????????????????????????????????? | | # # #???????????????????????????????????????????? | | ### ##??????????????????????????????????????????? | | ##?????????????????????????????????????????? | | ##????????????????????????????????????????? | | #????????????????????????????????????????? | | ##????????????????????????????????????????? | | ##?????????????????????????????????????????? | | % "##????????????????????????????????????????? | | " #????????????????????????????????????????? | | % % ###????????????????????????????????????????? | | %# %% "#?#???????????????????????????????????????? | | ### %" # ##??????????????????????????????????????? | | #?## " #??????????????????????????????????????? | | #??# #####??????????????????????????????????????? | | ##?# #??????????????????????????????????????????? | | #?# #????????????????######????????????????????? | | #?# #????????????????#A@g%##???????????????????? | | #?# #??####??????????# g % #???????????????????? | | #?## #?## #########??## %;#???????????????????? | | ##??##### ##??##%%##??#????????????????? | | "##### ##?## ## #????????????????? | | ### #????????????????? | | # #????????????????? | | ### #### #??????????? | | ## #### #? #??????????? | | ###" #?# ?????????? | | ##### ##?# ?????????? | | #### ##?? ?????????? | | ## ##??# ??????????? | | # ### ##???# ###??????????? | | # #?######????#### ##????????????? | | # ##??????????????# #?????????????? | | ## #??????????????? # #?????????????? | | ?# #??????????????? # ## ?????????????? | | ## ## ##??????????????? ####? ??????????????? | | ## #???????????????? #?????? ??????????????? | | ##??????????????? #?????????????????????? | | ##?????????????? ?????????????????????? | | ##?????????????? ?????????????????????? | | ## #?????????????????????????????????????? | | ?## #?????????????????????????????????????? | +----------------------------------------------------+ Best States ------------- Heat Dissipation 78 Energy Generation 18 Energy Capacity 290 Matter Stores 300 Matter Capacity 500 Sight Range 16 Terrain Scan Density 10 Armor Coverage 600 Weapon Cycling 20 Evasion (%) 55 Targeting Accuracy 6 Core Analysis 6 Armor Integrity Analysis 30 Recoil Reduction 4 Offensive Hacking 12 Item Schematics ----------------- Adv. Recoil Stabilizer | -5/Factory | Hacked Robot Schematics ------------------ None Fabricated ------------ Nothing Repaired ---------- Lgt. Treads | 11% | -6/Factory Hvy. Assault Cannon | 47% | -6/Factory Adv. Assault Cannon | 21% | -5/Factory Lgt. Treads | 29% | -5/Factory Alien Tech Used ----------------- None Achievements -------------- None Challenges ------------ None Game ------ Seed ThermicBlanketLeg Manual? 0 Play Time 01:02:38 Cumulative 117.1 hours Start 2025.09.30 @ 02:30:05 End 2025.09.30 @ 03:32:27 Sessions 1 Manual Loads 0 Difficulty Rogue Special Mode None Game No. 225 Rogue 223 Adventurer 0 Explorer 2 Win Type - Total 1 Types 1/0/0/0/0/0/0/0/0/0 Lore% 41 Gallery% 50 Achievement% 44 Wizard Run 0 Options --------- Layout 2 ASCII 0 Keyboard 1 Movement Arrows Keybinds 0 Fullscreen 1 Font 28/SmallcapsGlow Map View 50x49 Zoom Use 0% Tactical HUD 1 Map Filters NONE Filters NONE Steam 1 RUN: 5d30adb1-b638-4d0e-b095-1341d404fcf2